[Event "*** Qualifier 2: Titled Tuesday 3|2 Blitz"]
[Site "Chess.com"]
[Date "2017.04.11"]
[Round "1"]
[White "GMMelik"]
[Black "FelixBlohberger"]
[Result "1-0"]
[WhiteElo "2504"]
[BlackElo "2217"]
[TimeControl "180+2"]
[EndTime "13:05:39 PDT"]
[Termination "GMMelik won by resignation"]

1. e4 {[%clk 0:03:02]} 1... c5 {[%clk 0:02:57.8]} 2. Nf3 {[%clk 0:03:02.9]} 2...
d6 {[%clk 0:02:58.1]} 3. d4 {[%clk 0:03:03.3]} 3... cxd4 {[%clk 0:03:00]} 4.
Nxd4 {[%clk 0:03:04.9]} 4... Nf6 {[%clk 0:02:58.9]} 5. Nc3 {[%clk 0:03:05.9]}
5... a6 {[%clk 0:02:59.3]} 6. a4 {[%clk 0:03:07.1]} 6... e5 {[%clk 0:02:55.9]}
7. Nf3 {[%clk 0:03:08.2]} 7... Be7 {[%clk 0:02:52.1]} 8. Bc4 {[%clk 0:03:08.3]}
8... O-O {[%clk 0:02:52]} 9. O-O {[%clk 0:03:08.5]} 9... Qc7 {[%clk 0:02:52.4]}
10. Ba2 {[%clk 0:02:54.3]} 10... Nc6 {[%clk 0:02:50]} 11. Bg5 {[%clk 0:02:54.7]}
11... Be6 {[%clk 0:02:40.7]} 12. Bxf6 {[%clk 0:02:55.4]} 12... Bxf6 {[%clk
0:02:40.2]} 13. Nd5 {[%clk 0:02:56.2]} 13... Qd8 {[%clk 0:02:28.5]} 14. c3
{[%clk 0:02:55]} 14... Be7 {[%clk 0:01:45.3]} 15. b4 {[%clk 0:02:37.8]} 15...
Kh8 {[%clk 0:01:15.8]} 16. a5 {[%clk 0:02:37.8]} 16... f5 {[%clk 0:01:13.3]} 17.
Nd2 {[%clk 0:02:29.5]} 17... Bg5 {[%clk 0:01:12.3]} 18. Nb6 {[%clk 0:02:23.6]}
18... Bxa2 {[%clk 0:00:46.3]} 19. Rxa2 {[%clk 0:02:25.5]} 19... Rb8 {[%clk
0:00:35.3]} 20. exf5 {[%clk 0:02:24.3]} 20... Rxf5 {[%clk 0:00:30]} 21. Ne4
{[%clk 0:02:24.9]} 21... d5 {[%clk 0:00:28.2]} 22. Qxd5 {[%clk 0:02:22.1]} 22...
Qxd5 {[%clk 0:00:25]} 23. Nxd5 {[%clk 0:02:24]} 23... Rd8 {[%clk 0:00:26.3]} 24.
Rd1 {[%clk 0:02:18.6]} 24... Ne7 {[%clk 0:00:24.3]} 25. c4 {[%clk 0:02:18.3]}
25... Rf4 {[%clk 0:00:21.6]} 26. Nxg5 {[%clk 0:02:13.9]} 26... Rxc4 {[%clk
0:00:20.1]} 27. Nf7+ {[%clk 0:02:13.9]} 27... Kg8 {[%clk 0:00:20.9]} 1-0

[Event "*** Qualifier 2: Titled Tuesday 3|2 Blitz"]
[Site "Chess.com"]
[Date "2017.04.11"]
[Round "1"]
[White "ulises2013"]
[Black "Cayse"]
[Result "0-1"]
[WhiteElo "2299"]
[BlackElo "2587"]
[TimeControl "180+2"]
[EndTime "13:05:44 PDT"]
[Termination "Cayse won by resignation"]

1. e4 {[%clk 0:03:00.4]} 1... e5 {[%clk 0:03:00.5]} 2. Nf3 {[%clk 0:03:01.4]}
2... Nc6 {[%clk 0:03:01.3]} 3. Bc4 {[%clk 0:03:03]} 3... Nf6 {[%clk 0:03:01.6]}
4. d3 {[%clk 0:03:02.4]} 4... Be7 {[%clk 0:03:02.1]} 5. Nc3 {[%clk 0:03:03.6]}
5... O-O {[%clk 0:03:02.4]} 6. O-O {[%clk 0:03:03.6]} 6... d6 {[%clk 0:03:03.3]}
7. Bg5 {[%clk 0:03:04.2]} 7... Na5 {[%clk 0:03:03.1]} 8. Bb3 {[%clk 0:03:04.3]}
8... a6 {[%clk 0:03:01.9]} 9. h3 {[%clk 0:03:04.3]} 9... h6 {[%clk 0:03:02.1]}
10. Bh4 {[%clk 0:03:02.7]} 10... Nxb3 {[%clk 0:03:02.3]} 11. axb3 {[%clk
0:03:03.6]} 11... Be6 {[%clk 0:03:03.7]} 12. Bxf6 {[%clk 0:03:02.6]} 12... Bxf6
{[%clk 0:03:04.3]} 13. d4 {[%clk 0:03:03.8]} 13... exd4 {[%clk 0:02:50.6]} 14.
Nxd4 {[%clk 0:03:05.7]} 14... Qe7 {[%clk 0:02:51.8]} 15. Re1 {[%clk 0:03:05.9]}
15... Be5 {[%clk 0:02:49.1]} 16. Qd2 {[%clk 0:03:01.6]} 16... Qf6 {[%clk
0:02:49.1]} 17. Nf3 {[%clk 0:02:59.7]} 17... Bf4 {[%clk 0:02:48.2]} 18. Qd4
{[%clk 0:02:59.4]} 18... Qg6 {[%clk 0:02:48.6]} 19. Nh4 {[%clk 0:02:58]} 19...
Qh5 {[%clk 0:02:48.5]} 20. g3 {[%clk 0:02:48.4]} 20... Bxh3 {[%clk 0:02:47.8]}
21. Nd5 {[%clk 0:02:45.8]} 21... Bg5 {[%clk 0:02:45.5]} 22. e5 {[%clk
0:02:40.5]} 22... Bxh4 {[%clk 0:02:42.7]} 23. Qxh4 {[%clk 0:02:35.4]} 23... Qxh4
{[%clk 0:02:43.3]} 24. gxh4 {[%clk 0:02:37.3]} 24... dxe5 {[%clk 0:02:42.7]} 25.
Kh2 {[%clk 0:02:35.4]} 25... Be6 {[%clk 0:02:41]} 26. Nxc7 {[%clk 0:02:36]}
26... Rac8 {[%clk 0:02:41.7]} 27. Nxe6 {[%clk 0:02:37]} 27... fxe6 {[%clk
0:02:42.9]} 28. Re2 {[%clk 0:02:38.1]} 28... Rf4 {[%clk 0:02:43.1]} 29. Ra5
{[%clk 0:02:30.2]} 29... Rxh4+ {[%clk 0:02:42.3]} 30. Kg3 {[%clk 0:02:31.3]}
30... Rh5 {[%clk 0:02:43.6]} 31. Raxe5 {[%clk 0:02:32.4]} 31... Rxe5 {[%clk
0:02:44.1]} 32. Rxe5 {[%clk 0:02:34.3]} 32... Rxc2 {[%clk 0:02:45.1]} 33. Rxe6
{[%clk 0:02:34.9]} 33... Kf7 {[%clk 0:02:39.4]} 34. Rb6 {[%clk 0:02:35.1]} 34...
Rc7 {[%clk 0:02:40]} 35. b4 {[%clk 0:02:36.2]} 35... Ke7 {[%clk 0:02:40]} 36. b5
{[%clk 0:02:35.4]} 36... a5 {[%clk 0:02:40.7]} 37. Rg6 {[%clk 0:02:34.6]} 37...
Kd8 {[%clk 0:02:40.3]} 38. f3 {[%clk 0:02:35.3]} 38... Rd7 {[%clk 0:02:38.9]}
39. b6 {[%clk 0:02:34.8]} 39... Ke8 {[%clk 0:02:38.7]} 40. Re6+ {[%clk
0:02:34.3]} 40... Kf7 {[%clk 0:02:39.7]} 41. Re5 {[%clk 0:02:35.2]} 41... Rd2
{[%clk 0:02:40.3]} 42. Rb5 {[%clk 0:02:33.9]} 42... Ke6 {[%clk 0:02:33.7]} 43.
Kf4 {[%clk 0:02:24.1]} 43... Rd4+ {[%clk 0:02:32.7]} 44. Ke3 {[%clk 0:02:21.6]}
44... Rb4 {[%clk 0:02:33.5]} 45. Rxa5 {[%clk 0:02:22.3]} 45... Rxb2 {[%clk
0:02:33.9]} 46. Ra8 {[%clk 0:02:17.3]} 46... Rxb6 {[%clk 0:02:33]} 47. Rg8
{[%clk 0:02:19.2]} 47... Kf7 {[%clk 0:02:33.4]} 48. Rd8 {[%clk 0:02:19.6]} 48...
Re6+ {[%clk 0:02:33.8]} 49. Kf4 {[%clk 0:02:20.8]} 49... Re7 {[%clk 0:02:34.8]}
50. Rb8 {[%clk 0:02:21.5]} 50... Kg6 {[%clk 0:02:35.4]} 51. Kg4 {[%clk 0:02:22]}
51... Rf7 {[%clk 0:02:36.1]} 52. f4 {[%clk 0:02:21.8]} 52... Kf6 {[%clk
0:02:36.8]} 53. Rd8 {[%clk 0:02:21.7]} 53... Ke6 {[%clk 0:02:37.3]} 54. Re8+
{[%clk 0:02:22.5]} 54... Kd6 {[%clk 0:02:37.5]} 55. Rc8 {[%clk 0:02:22.9]} 55...
b5 {[%clk 0:02:37.7]} 56. f5 {[%clk 0:02:23.6]} 56... Rb7 {[%clk 0:02:37.5]} 57.
Rc3 {[%clk 0:02:23.6]} 57... b4 {[%clk 0:02:38.2]} 0-1

[Event "*** Qualifier 2: Titled Tuesday 3|2 Blitz"]
[Site "Chess.com"]
[Date "2017.04.11"]
[Round "1"]
[White "djano"]
[Black "DagurR"]
[Result "1-0"]
[WhiteElo "2228"]
[BlackElo "2438"]
[TimeControl "180+2"]
[EndTime "13:05:46 PDT"]
[Termination "djano won by checkmate"]

1. d4 {[%clk 0:03:02]} 1... f5 {[%clk 0:03:00.5]} 2. Bf4 {[%clk 0:03:00.8]} 2...
Nf6 {[%clk 0:02:59.1]} 3. e3 {[%clk 0:03:01.3]} 3... g6 {[%clk 0:03:00.4]} 4. h4
{[%clk 0:03:01.5]} 4... h6 {[%clk 0:03:00.4]} 5. Nd2 {[%clk 0:03:00.7]} 5... Bg7
{[%clk 0:03:01.6]} 6. Bc4 {[%clk 0:03:00.6]} 6... e6 {[%clk 0:03:02.2]} 7. Qe2
{[%clk 0:02:55.5]} 7... d6 {[%clk 0:03:03.1]} 8. O-O-O {[%clk 0:02:55.1]} 8...
Qe7 {[%clk 0:03:01.7]} 9. Kb1 {[%clk 0:02:49.9]} 9... Nc6 {[%clk 0:03:02.3]} 10.
f3 {[%clk 0:02:43.6]} 10... Na5 {[%clk 0:03:01.7]} 11. Bd3 {[%clk 0:02:42]}
11... e5 {[%clk 0:02:58.4]} 12. dxe5 {[%clk 0:02:40.8]} 12... dxe5 {[%clk
0:03:00.3]} 13. Bh2 {[%clk 0:02:41.1]} 13... O-O {[%clk 0:02:59.2]} 14. Nb3
{[%clk 0:02:34]} 14... Nxb3 {[%clk 0:02:55.5]} 15. axb3 {[%clk 0:02:35.6]} 15...
e4 {[%clk 0:02:42.2]} 16. Bc4+ {[%clk 0:02:35.7]} 16... Kh8 {[%clk 0:02:16.2]}
17. Nh3 {[%clk 0:02:36.4]} 17... a6 {[%clk 0:02:12.3]} 18. Nf4 {[%clk
0:02:29.4]} 18... Qe8 {[%clk 0:02:10.7]} 19. h5 {[%clk 0:02:22]} 19... Nxh5
{[%clk 0:02:07.1]} 20. Nxh5 {[%clk 0:02:20.9]} 20... gxh5 {[%clk 0:02:09]} 21.
Bxc7 {[%clk 0:02:10.6]} 21... b5 {[%clk 0:02:06.2]} 22. Bd5 {[%clk 0:01:54.9]}
22... Ra7 {[%clk 0:02:07.2]} 23. Bd6 {[%clk 0:01:52]} 23... Rf6 {[%clk 0:01:56]}
24. Bf4 {[%clk 0:01:47.8]} 24... a5 {[%clk 0:01:49.6]} 25. fxe4 {[%clk 0:01:37]}
25... fxe4 {[%clk 0:01:47.5]} 26. Rxh5 {[%clk 0:01:35.1]} 26... a4 {[%clk
0:01:27.4]} 27. Be5 {[%clk 0:01:23.7]} 27... Rf5 {[%clk 0:01:08.2]} 28. Rxh6#
{[%clk 0:01:21.3]} 1-0

[Event "*** Qualifier 2: Titled Tuesday 3|2 Blitz"]
[Site "Chess.com"]
[Date "2017.04.11"]
[Round "1"]
[White "Witik"]
[Black "abubakrtagelsir"]
[Result "1-0"]
[WhiteElo "2481"]
[BlackElo "2164"]
[TimeControl "180+2"]
[EndTime "13:05:53 PDT"]
[Termination "Witik won by resignation"]

1. d4 {[%clk 0:03:01.8]} 1... d5 {[%clk 0:03:00.1]} 2. Bf4 {[%clk 0:03:00.5]}
2... Nf6 {[%clk 0:03:00.2]} 3. e3 {[%clk 0:03:01.5]} 3... c5 {[%clk 0:03:00.5]}
4. c3 {[%clk 0:03:02.3]} 4... Nc6 {[%clk 0:03:00.8]} 5. Nd2 {[%clk 0:03:02.3]}
5... Qb6 {[%clk 0:03:01]} 6. Qb3 {[%clk 0:03:01.4]} 6... c4 {[%clk 0:02:59.1]}
7. Qc2 {[%clk 0:03:02.3]} 7... Bg4 {[%clk 0:02:58.5]} 8. b3 {[%clk 0:03:02.8]}
8... cxb3 {[%clk 0:02:56.3]} 9. axb3 {[%clk 0:03:04.7]} 9... e6 {[%clk
0:02:56.7]} 10. Ngf3 {[%clk 0:03:02.5]} 10... Rc8 {[%clk 0:02:54.8]} 11. Nh4
{[%clk 0:02:39]} 11... Be7 {[%clk 0:02:38.3]} 12. h3 {[%clk 0:02:37.2]} 12...
Bh5 {[%clk 0:02:37.2]} 13. g4 {[%clk 0:02:29]} 13... Bg6 {[%clk 0:02:37.3]} 14.
Nxg6 {[%clk 0:02:30]} 14... hxg6 {[%clk 0:02:37.6]} 15. Be2 {[%clk 0:02:19.7]}
15... Nd7 {[%clk 0:02:22.6]} 16. Kf1 {[%clk 0:02:07]} 16... e5 {[%clk
0:02:21.5]} 17. dxe5 {[%clk 0:02:07.9]} 17... Ndxe5 {[%clk 0:02:20.4]} 18. Kg2
{[%clk 0:02:09]} 18... g5 {[%clk 0:02:17.5]} 19. Bg3 {[%clk 0:02:09.5]} 19...
Ng6 {[%clk 0:02:06.4]} 20. Nf3 {[%clk 0:02:05.2]} 20... Nh4+ {[%clk 0:02:00.4]}
21. Bxh4 {[%clk 0:02:06.1]} 21... gxh4 {[%clk 0:02:00.4]} 22. Rhd1 {[%clk
0:02:03.6]} 22... Rd8 {[%clk 0:01:52.2]} 23. b4 {[%clk 0:02:00.6]} 23... Qc7
{[%clk 0:01:49.2]} 24. Qb3 {[%clk 0:01:51.9]} 24... Qd6 {[%clk 0:01:33.2]} 25.
e4 {[%clk 0:01:46]} 25... Ne5 {[%clk 0:01:27.3]} 26. Rxd5 {[%clk 0:01:45.5]} 1-0

[Event "*** Qualifier 2: Titled Tuesday 3|2 Blitz"]
[Site "Chess.com"]
[Date "2017.04.11"]
[Round "1"]
[White "Rating-Schmating"]
[Black "GM_Donatello"]
[Result "1/2-1/2"]
[WhiteElo "2250"]
[BlackElo "2505"]
[TimeControl "180+2"]
[EndTime "13:06:18 PDT"]
[Termination "Game drawn by repetition"]

1. e4 {[%clk 0:03:01.9]} 1... e5 {[%clk 0:03:00.5]} 2. Nf3 {[%clk 0:03:01.8]}
2... Nc6 {[%clk 0:03:01.8]} 3. d4 {[%clk 0:03:02.8]} 3... exd4 {[%clk
0:03:02.7]} 4. Nxd4 {[%clk 0:03:04]} 4... Bb4+ {[%clk 0:03:02.7]} 5. c3 {[%clk
0:03:02.9]} 5... Bc5 {[%clk 0:03:02.8]} 6. Be3 {[%clk 0:03:03.7]} 6... Bb6
{[%clk 0:03:02.3]} 7. Bc4 {[%clk 0:03:04.1]} 7... Nf6 {[%clk 0:03:02.8]} 8. Nxc6
{[%clk 0:02:55.7]} 8... bxc6 {[%clk 0:03:04.7]} 9. Bxb6 {[%clk 0:02:53]} 9...
axb6 {[%clk 0:03:06.5]} 10. Nd2 {[%clk 0:02:54.1]} 10... O-O {[%clk 0:03:04.4]}
11. O-O {[%clk 0:02:54.7]} 11... d5 {[%clk 0:03:04.3]} 12. Bd3 {[%clk
0:02:55.5]} 12... Re8 {[%clk 0:03:01.9]} 13. Qc2 {[%clk 0:02:55]} 13... Qd6
{[%clk 0:02:45]} 14. Rfe1 {[%clk 0:02:52.3]} 14... Bg4 {[%clk 0:02:39.5]} 15. f3
{[%clk 0:02:50.2]} 15... Bh5 {[%clk 0:02:39]} 16. exd5 {[%clk 0:02:46.3]} 16...
cxd5 {[%clk 0:02:38.1]} 17. a3 {[%clk 0:02:43.8]} 17... Bg6 {[%clk 0:02:34.8]}
18. Bxg6 {[%clk 0:02:44.1]} 18... hxg6 {[%clk 0:02:36.7]} 19. Nf1 {[%clk
0:02:45.5]} 19... Re7 {[%clk 0:02:23.1]} 20. Rxe7 {[%clk 0:02:45]} 20... Qxe7
{[%clk 0:02:25]} 21. Qd2 {[%clk 0:02:45.2]} 21... Re8 {[%clk 0:02:25.5]} 22. Ng3
{[%clk 0:02:43.3]} 22... Qc5+ {[%clk 0:02:16.9]} 23. Qf2 {[%clk 0:02:36.3]}
23... Qb5 {[%clk 0:02:14.2]} 24. h3 {[%clk 0:02:26]} 24... c5 {[%clk 0:02:13.5]}
25. b4 {[%clk 0:02:25.6]} 25... Qc4 {[%clk 0:02:07.6]} 26. bxc5 {[%clk
0:02:14.4]} 26... bxc5 {[%clk 0:02:09.5]} 27. Qd2 {[%clk 0:02:15.1]} 27... Ra8
{[%clk 0:02:07.5]} 28. Ne2 {[%clk 0:02:13.5]} 28... Kh7 {[%clk 0:01:58.2]} 29.
Nf4 {[%clk 0:02:08.5]} 29... Ra4 {[%clk 0:01:47.9]} 30. Nd3 {[%clk 0:02:06.9]}
30... Ra5 {[%clk 0:01:48.7]} 31. Ne5 {[%clk 0:02:06.8]} 31... Qb3 {[%clk
0:01:43.1]} 32. Nxf7 {[%clk 0:02:06]} 32... Rxa3 {[%clk 0:01:43.1]} 33. Rxa3
{[%clk 0:02:06.8]} 33... Qxa3 {[%clk 0:01:45]} 34. Ng5+ {[%clk 0:02:05.8]} 34...
Kh8 {[%clk 0:01:40.9]} 35. Qe3 {[%clk 0:02:02.2]} 35... Qa1+ {[%clk 0:01:29.3]}
36. Kh2 {[%clk 0:02:02.6]} 36... Qa7 {[%clk 0:01:31.2]} 37. Qe5 {[%clk
0:01:57.1]} 37... Qd7 {[%clk 0:01:24]} 38. Qb8+ {[%clk 0:01:57.8]} 38... Ne8
{[%clk 0:01:22.2]} 39. f4 {[%clk 0:01:55.6]} 39... d4 {[%clk 0:01:21.8]} 40.
cxd4 {[%clk 0:01:54.7]} 40... cxd4 {[%clk 0:01:23.7]} 41. Qb3 {[%clk 0:01:51.4]}
41... d3 {[%clk 0:01:13]} 42. Nf7+ {[%clk 0:01:50.5]} 42... Kh7 {[%clk
0:01:14.5]} 43. Ng5+ {[%clk 0:01:51.1]} 43... Kh8 {[%clk 0:01:15.4]} 44. Nf7+
{[%clk 0:01:51.8]} 44... Kh7 {[%clk 0:01:16.8]} 45. Ng5+ {[%clk 0:01:50.1]}
45... Kh8 {[%clk 0:01:18]} 1/2-1/2

[Event "*** Qualifier 2: Titled Tuesday 3|2 Blitz"]
[Site "Chess.com"]
[Date "2017.04.11"]
[Round "1"]
[White "LawrenceTrent"]
[Black "aa175"]
[Result "1-0"]
[WhiteElo "2392"]
[BlackElo "1861"]
[TimeControl "180+2"]
[EndTime "13:06:22 PDT"]
[Termination "LawrenceTrent won by checkmate"]

1. e4 {[%clk 0:03:00.9]} 1... e5 {[%clk 0:02:58.8]} 2. Nf3 {[%clk 0:03:00.2]}
2... Nc6 {[%clk 0:02:59.6]} 3. Bb5 {[%clk 0:02:43.5]} 3... Nf6 {[%clk 0:03:00]}
4. O-O {[%clk 0:02:43.6]} 4... a6 {[%clk 0:02:55.8]} 5. Bxc6 {[%clk 0:02:43.5]}
5... dxc6 {[%clk 0:02:56.5]} 6. Nxe5 {[%clk 0:02:44.7]} 6... Bd6 {[%clk
0:02:57.4]} 7. d4 {[%clk 0:02:44.7]} 7... Bxe5 {[%clk 0:02:50]} 8. dxe5 {[%clk
0:02:46]} 8... Qxd1 {[%clk 0:02:50.8]} 9. Rxd1 {[%clk 0:02:47.9]} 9... Nxe4
{[%clk 0:02:52.1]} 10. f3 {[%clk 0:02:48.6]} 10... Nc5 {[%clk 0:02:51.9]} 11.
Be3 {[%clk 0:02:49.7]} 11... Ne6 {[%clk 0:02:52.6]} 12. Nc3 {[%clk 0:02:49.3]}
12... O-O {[%clk 0:02:52.7]} 13. a4 {[%clk 0:02:49.5]} 13... b6 {[%clk
0:02:52.5]} 14. a5 {[%clk 0:02:50.3]} 14... b5 {[%clk 0:02:53.4]} 15. Ne4 {[%clk
0:02:51.2]} 15... Bb7 {[%clk 0:02:47.4]} 16. Nc5 {[%clk 0:02:48.6]} 16... Nxc5
{[%clk 0:02:44.5]} 17. Bxc5 {[%clk 0:02:50.5]} 17... Rfd8 {[%clk 0:02:45.6]} 18.
Kf2 {[%clk 0:02:50.1]} 18... Rd5 {[%clk 0:02:46.1]} 19. Rxd5 {[%clk 0:02:39.5]}
19... cxd5 {[%clk 0:02:47]} 20. Ke3 {[%clk 0:02:40.9]} 20... Bc8 {[%clk
0:02:43.2]} 21. Kd4 {[%clk 0:02:41.2]} 21... c6 {[%clk 0:02:42.5]} 22. Bd6
{[%clk 0:02:40.4]} 22... Bf5 {[%clk 0:02:05.5]} 23. c3 {[%clk 0:02:40.9]} 23...
Ra7 {[%clk 0:01:44.8]} 24. Kc5 {[%clk 0:02:40]} 24... Bd3 {[%clk 0:01:11.6]} 25.
Kxc6 {[%clk 0:02:39.8]} 25... Bc4 {[%clk 0:01:10.5]} 26. Kb6 {[%clk 0:02:41.3]}
26... Rd7 {[%clk 0:00:50.5]} 27. Kxa6 {[%clk 0:02:40]} 27... f6 {[%clk
0:00:45.7]} 28. Kb6 {[%clk 0:02:39.2]} 28... fxe5 {[%clk 0:00:43.2]} 29. Bxe5
{[%clk 0:02:40.5]} 29... Re7 {[%clk 0:00:36.8]} 30. Bd6 {[%clk 0:02:41.5]} 30...
Re2 {[%clk 0:00:13.7]} 31. a6 {[%clk 0:02:40.7]} 31... d4 {[%clk 0:00:14.4]} 32.
a7 {[%clk 0:02:37]} 32... Bd5 {[%clk 0:00:15.3]} 33. a8=Q+ {[%clk 0:02:36.4]}
33... Bxa8 {[%clk 0:00:16.6]} 34. Rxa8+ {[%clk 0:02:37.7]} 34... Kf7 {[%clk
0:00:18.5]} 35. cxd4 {[%clk 0:02:38.2]} 35... Rxb2 {[%clk 0:00:19.7]} 36. Be5
{[%clk 0:02:37.5]} 36... Rxg2 {[%clk 0:00:20.3]} 37. d5 {[%clk 0:02:37.1]} 37...
Rg5 {[%clk 0:00:20]} 38. f4 {[%clk 0:02:38.2]} 38... Rg2 {[%clk 0:00:20]} 39.
Ra7+ {[%clk 0:02:39.4]} 39... Kg6 {[%clk 0:00:20.1]} 40. Rxg7+ {[%clk
0:02:40.6]} 40... Kh6 {[%clk 0:00:14.9]} 41. Rxg2 {[%clk 0:02:42.5]} 41... b4
{[%clk 0:00:15.7]} 42. d6 {[%clk 0:02:39.6]} 42... b3 {[%clk 0:00:17.6]} 43. d7
{[%clk 0:02:41]} 43... b2 {[%clk 0:00:19.4]} 44. Bxb2 {[%clk 0:02:42.2]} 44...
Kh5 {[%clk 0:00:19.8]} 45. d8=Q {[%clk 0:02:43.5]} 45... Kh6 {[%clk 0:00:21.7]}
46. Qh4# {[%clk 0:02:44.6]} 1-0

[Event "*** Qualifier 2: Titled Tuesday 3|2 Blitz"]
[Site "Chess.com"]
[Date "2017.04.11"]
[Round "1"]
[White "Outsmiter"]
[Black "kjzsdu"]
[Result "0-1"]
[WhiteElo "2123"]
[BlackElo "2439"]
[TimeControl "180+2"]
[EndTime "13:06:33 PDT"]
[Termination "kjzsdu won by resignation"]

1. e4 {[%clk 0:03:02]} 1... c5 {[%clk 0:03:00.7]} 2. Nc3 {[%clk 0:03:02.4]} 2...
Nc6 {[%clk 0:03:01.6]} 3. f4 {[%clk 0:03:03.6]} 3... e6 {[%clk 0:03:01.5]} 4.
Nf3 {[%clk 0:03:04.6]} 4... d6 {[%clk 0:03:01.8]} 5. Bb5 {[%clk 0:03:05.6]} 5...
Bd7 {[%clk 0:03:02.8]} 6. O-O {[%clk 0:03:06.2]} 6... a6 {[%clk 0:03:02.9]} 7.
Bxc6 {[%clk 0:03:06.6]} 7... bxc6 {[%clk 0:02:59.5]} 8. e5 {[%clk 0:03:04.3]}
8... f5 {[%clk 0:02:57]} 9. d3 {[%clk 0:03:03.8]} 9... d5 {[%clk 0:02:56.3]} 10.
Na4 {[%clk 0:03:00.4]} 10... Qa5 {[%clk 0:02:54.6]} 11. c4 {[%clk 0:02:58.8]}
11... Rb8 {[%clk 0:02:51.6]} 12. b3 {[%clk 0:02:57.7]} 12... Ne7 {[%clk
0:02:44.2]} 13. Bd2 {[%clk 0:02:57.6]} 13... Qc7 {[%clk 0:02:31.7]} 14. Nxc5
{[%clk 0:02:57.4]} 14... Bc8 {[%clk 0:02:33.2]} 15. Kh1 {[%clk 0:02:51.9]} 15...
Ng6 {[%clk 0:02:25.5]} 16. Ng5 {[%clk 0:02:50.9]} 16... Bxc5 {[%clk 0:02:24.8]}
17. Qh5 {[%clk 0:02:48]} 17... Kd8 {[%clk 0:01:57.4]} 18. Nxh7 {[%clk
0:02:41.8]} 18... Nf8 {[%clk 0:01:42.2]} 19. Qg5+ {[%clk 0:02:36.9]} 19... Be7
{[%clk 0:01:43.3]} 20. Qxg7 {[%clk 0:02:30.7]} 20... Rxh7 {[%clk 0:01:44.1]} 21.
Qg8 {[%clk 0:02:30.1]} 21... Ke8 {[%clk 0:01:34.9]} 22. Rf3 {[%clk 0:02:28.2]}
22... Bd8 {[%clk 0:01:31.2]} 23. Qg3 {[%clk 0:02:01.3]} 23... Qg7 {[%clk
0:01:32]} 24. Qe1 {[%clk 0:01:59.3]} 24... Bb6 {[%clk 0:01:26.7]} 25. Rg3 {[%clk
0:01:57.2]} 25... Qh6 {[%clk 0:01:26.3]} 26. Rh3 {[%clk 0:01:51.9]} 26... Qg6
{[%clk 0:01:26.6]} 27. Rg3 {[%clk 0:01:51.7]} 27... Qh5 {[%clk 0:01:24.1]} 28.
Rh3 {[%clk 0:01:51.6]} 28... Qg4 {[%clk 0:01:24.8]} 29. Rg3 {[%clk 0:01:51.7]}
29... Qh4 {[%clk 0:01:25.5]} 30. h3 {[%clk 0:01:37.6]} 30... Bd4 {[%clk
0:01:26.6]} 31. Rd1 {[%clk 0:01:33.6]} 31... dxc4 {[%clk 0:01:27.4]} 32. dxc4
{[%clk 0:01:33.3]} 32... c5 {[%clk 0:01:28.4]} 33. Ba5 {[%clk 0:01:26.9]} 33...
Bb7 {[%clk 0:01:28.4]} 34. Rdd3 {[%clk 0:01:22.5]} 34... Be4 {[%clk 0:01:28.2]}
35. Rxd4 {[%clk 0:00:56.2]} 35... cxd4 {[%clk 0:01:30.1]} 36. Rg8 {[%clk
0:00:53.2]} 36... Qxh3+ {[%clk 0:01:26.1]} 37. Kg1 {[%clk 0:00:53.1]} 0-1

[Event "*** Qualifier 2: Titled Tuesday 3|2 Blitz"]
[Site "Chess.com"]
[Date "2017.04.11"]
[Round "1"]
[White "chesstatour"]
[Black "FancyPlaySyndrome"]
[Result "0-1"]
[WhiteElo "1923"]
[BlackElo "2392"]
[TimeControl "180+2"]
[EndTime "13:06:50 PDT"]
[Termination "FancyPlaySyndrome won on time"]

1. c4 {[%clk 0:03:02]} 1... c5 {[%clk 0:02:57.6]} 2. Nc3 {[%clk 0:02:58.8]} 2...
Nc6 {[%clk 0:02:57.7]} 3. Nf3 {[%clk 0:02:51.4]} 3... g6 {[%clk 0:02:58.6]} 4.
d4 {[%clk 0:02:52.9]} 4... cxd4 {[%clk 0:02:59.4]} 5. Nxd4 {[%clk 0:02:54.8]}
5... Bg7 {[%clk 0:03:00.4]} 6. Nc2 {[%clk 0:02:54.1]} 6... d6 {[%clk 0:02:59.4]}
7. g3 {[%clk 0:02:55.4]} 7... a6 {[%clk 0:03:00.5]} 8. Bg2 {[%clk 0:02:56.3]}
8... Bd7 {[%clk 0:03:01.7]} 9. O-O {[%clk 0:02:57.8]} 9... Rb8 {[%clk 0:03:03]}
10. a4 {[%clk 0:02:42.6]} 10... Nf6 {[%clk 0:03:00.2]} 11. e4 {[%clk 0:02:31.3]}
11... O-O {[%clk 0:02:58.6]} 12. Qe2 {[%clk 0:02:32.3]} 12... Be6 {[%clk
0:02:38.6]} 13. b3 {[%clk 0:02:32.8]} 13... Nd7 {[%clk 0:02:26.3]} 14. Bb2
{[%clk 0:02:31.1]} 14... Nc5 {[%clk 0:02:23.6]} 15. b4 {[%clk 0:01:59.1]} 15...
Nb3 {[%clk 0:02:24.5]} 16. Rad1 {[%clk 0:01:59.1]} 16... Nbd4 {[%clk 0:02:23.5]}
17. Nxd4 {[%clk 0:01:42.5]} 17... Nxd4 {[%clk 0:02:25.4]} 18. Qd3 {[%clk
0:01:37.2]} 18... b5 {[%clk 0:02:18.2]} 19. cxb5 {[%clk 0:01:26.3]} 19... axb5
{[%clk 0:02:19.4]} 20. Nxb5 {[%clk 0:00:43.1]} 20... Nxb5 {[%clk 0:02:20.2]} 21.
Bxg7 {[%clk 0:00:40.8]} 21... Kxg7 {[%clk 0:02:22.1]} 22. axb5 {[%clk
0:00:40.9]} 22... Qb6 {[%clk 0:02:22]} 23. Qd4+ {[%clk 0:00:36.7]} 23... Qxd4
{[%clk 0:02:22.4]} 24. Rxd4 {[%clk 0:00:38.6]} 24... Rxb5 {[%clk 0:02:24]} 25.
Rb1 {[%clk 0:00:21.9]} 25... Rfb8 {[%clk 0:02:23]} 26. f3 {[%clk 0:00:21.1]}
26... d5 {[%clk 0:02:16.6]} 27. f4 {[%clk 0:00:14.6]} 27... dxe4 {[%clk
0:02:15]} 28. Bxe4 {[%clk 0:00:14]} 28... Kf6 {[%clk 0:02:10.7]} 29. Kf2 {[%clk
0:00:15]} 29... h6 {[%clk 0:02:11.4]} 30. Ke3 {[%clk 0:00:15.6]} 30... h5 {[%clk
0:02:12]} 31. Bd3 {[%clk 0:00:14]} 31... R5b6 {[%clk 0:02:09]} 32. b5 {[%clk
0:00:12.5]} 32... h4 {[%clk 0:02:06.9]} 33. Ra4 {[%clk 0:00:09.9]} 33... hxg3
{[%clk 0:02:01.2]} 34. hxg3 {[%clk 0:00:11.8]} 34... Bf5 {[%clk 0:01:53.3]} 35.
Bxf5 {[%clk 0:00:07.5]} 35... Kxf5 {[%clk 0:01:55.2]} 36. Rab4 {[%clk 0:00:04]}
36... g5 {[%clk 0:01:53.9]} 0-1